bitfinex-derivatives/quotes_BTCF0:USTF0_20240929
["timestamp","ask_amount","ask_price","bid_price","bid_amount"]
[1727614628499,0.08436366,65670.0,65667.0,0.0324]
[1727614628802,0.03436366,65669.0,65667.0,0.0324]
[1727614629105,0.06436366,65669.0,65667.0,0.0324]
[1727614629404,0.03439034,65668.0,65667.0,0.0324]
[1727614629599,0.05439034,65668.0,65667.0,0.0324]
[1727614630706,0.028,65668.0,65667.0,0.0324]
[1727614632003,0.034,65668.0,65667.0,0.0324]
[1727614633702,0.06840819,65668.0,65667.0,0.0324]
[1727614634603,0.06840819,65668.0,65666.0,0.3608]
[1727614634802,0.034,65668.0,65666.0,0.3608]
[1727614635004,0.034,65668.0,65667.0,0.10207294]
[1727614635211,0.034,65668.0,65666.0,0.43689528]
[1727614635614,0.028,65668.0,65667.0,0.53898785]
[1727614635918,0.033,65668.0,65667.0,0.46289257]
[1727614636517,0.032,65668.0,65667.0,0.46289257]
[1727614637321,0.025,65668.0,65667.0,0.46289257]
[1727614637616,0.034,65668.0,65667.0,0.46289257]
[1727614637813,0.034,65668.0,65667.0,0.53898317]
[1727614638315,0.034,65668.0,65667.0,0.53898657]
[1727614639917,0.034,65668.0,65667.0,0.4368906]
[1727614641017,0.034,65668.0,65667.0,0.46287055]
[1727614641630,0.034,65668.0,65667.0,0.53895923]
[1727614641813,0.034,65668.0,65667.0,0.46287055]
[1727614642127,0.034,65668.0,65667.0,0.3608]
[1727614650046,0.10837591,65668.0,65667.0,0.3608]
[1727614651639,0.10842102,65668.0,65667.0,0.3608]
[1727614656344,0.22994214,65668.0,65667.0,0.3608]
[1727614657044,0.034,65668.0,65667.0,0.46298078]
[1727614661447,0.034,65668.0,65667.0,0.5542856]
[1727614664345,0.034,65668.0,65667.0,0.46298078]
[1727614664557,0.0035,65673.0,65667.0,0.58470799]
[1727614664852,0.0035,65673.0,65668.0,0.22390799]
[1727614665053,0.0035,65673.0,65667.0,0.7216]
[1727614665054,0.10636711,65669.0,65667.0,0.72392]
[1727614665253,0.0348317,65668.0,65667.0,0.7216]
[1727614666862,0.0348317,65668.0,65667.0,0.7226]
[1727614667054,0.0428317,65668.0,65667.0,0.7226]
[1727614667450,0.0488317,65668.0,65667.0,0.7226]
[1727614669146,0.0488317,65668.0,65667.0,0.001]
[1727614669351,0.0488317,65668.0,65667.0,0.7226]
[1727614670666,0.04873249,65668.0,65667.0,0.7226]
[1727614672151,0.014,65668.0,65667.0,0.82438755]
[1727614672351,0.014,65668.0,65667.0,0.88438755]
[1727614672550,0.014,65668.0,65667.0,0.94627697]
[1727614672961,0.014,65668.0,65667.0,0.97937697]
[1727614673151,0.014,65668.0,65667.0,0.91937697]
[1727614673346,0.014,65668.0,65667.0,0.88129117]
[1727614673556,0.014,65668.0,65667.0,0.85748755]
[1727614675258,0.014,65668.0,65667.0,0.85748608]
[1727614675754,0.014,65668.0,65667.0,0.82438608]
[1727614676064,0.014,65668.0,65667.0,0.96232295]
[1727614677162,0.014,65668.0,65667.0,0.86053687]
[1727614677859,0.014,65668.0,65667.0,0.82245198]
[1727614678254,0.014,65668.0,65667.0,0.92427927]
[1727614678760,0.014,65668.0,65667.0,0.02480306]
[1727614678954,0.014,65668.0,65667.0,0.74640306]
[1727614679860,0.024,65668.0,65667.0,0.74640306]
[1727614680560,0.05875139,65668.0,65667.0,0.74640306]
[1727614681566,0.05875139,65668.0,65667.0,0.7226]
[1727614683065,0.05868536,65668.0,65667.0,0.7226]
[1727614684655,0.05868536,65668.0,65667.0,0.3618]
[1727614685075,0.08898536,65668.0,65667.0,0.3618]
[1727614686069,0.19535247,65668.0,65667.0,0.3618]
[1727614687170,0.0543,65668.0,65667.0,0.46377355]
[1727614687590,0.0543,65668.0,65667.0,0.46378539]
[1727614690676,0.0543,65668.0,65667.0,0.47378539]
[1727614690864,0.0543,65668.0,65667.0,0.56515392]
[1727614691069,0.0543,65668.0,65667.0,0.55515392]
[1727614691970,0.0543,65668.0,65667.0,0.46378539]
[1727614692166,0.0543,65668.0,65667.0,0.46384936]
[1727614693571,0.0543,65668.0,65667.0,0.5855004]
[1727614693771,0.0543,65668.0,65667.0,0.46384936]
[1727614694177,0.0543,65668.0,65667.0,0.58550054]
[1727614694373,0.0543,65668.0,65667.0,0.46384936]
[1727614694676,0.0443,65668.0,65667.0,0.46384936]
[1727614695085,0.0543,65668.0,65667.0,0.58550131]
[1727614695377,0.0543,65668.0,65667.0,0.43790897]
[1727614695673,0.0543,65668.0,65667.0,0.3618]
[1727614696074,0.0443,65668.0,65667.0,0.3618]
[1727614696375,0.0543,65668.0,65667.0,0.43790897]
[1727614697280,0.0543,65668.0,65667.0,0.53998799]
[1727614697583,0.0443,65668.0,65667.0,0.43790897]
[1727614697783,0.0543,65668.0,65667.0,0.43790897]
[1727614699085,0.0443,65668.0,65667.0,0.43790897]
[1727614700782,0.0543,65668.0,65667.0,0.43790897]
[1727614701572,0.0543,65668.0,65667.0,0.54000851]
[1727614701980,0.0543,65668.0,65667.0,0.43790897]
[1727614702484,0.0543,65668.0,65667.0,0.54000505]
[1727614703190,0.08885077,65668.0,65667.0,0.3618]
[1727614703784,0.07885077,65668.0,65667.0,0.3618]
[1727614703982,0.08885077,65668.0,65667.0,0.3618]
[1727614704794,0.07885077,65668.0,65667.0,0.3618]
[1727614704984,0.08885077,65668.0,65667.0,0.3618]
[1727614705694,0.07885077,65668.0,65667.0,0.3618]
[1727614706488,0.08885077,65668.0,65667.0,0.3618]
[1727614708393,0.07885077,65668.0,65667.0,0.3618]
[1727614709175,0.04855077,65668.0,65667.0,0.4618]
[1727614709583,0.04855077,65668.0,65667.0,0.4951]
[1727614709783,0.014,65668.0,65667.0,0.4951]
[1727614710191,0.0035,65673.0,65667.0,0.71875717]
[1727614710389,0.0035,65673.0,65668.0,0.22365717]
[1727614710686,0.0035,65673.0,65669.0,0.25542501]
[1727614710880,0.0035,65673.0,65670.0,0.22362501]
[1727614711089,0.0035,65676.0,65671.0,0.10202049]
[1727614711289,0.03,65676.0,65675.0,0.3608]
[1727614711591,0.03,65676.0,65675.0,0.46282049]
[1727614712278,0.04,65676.0,65675.0,0.46282049]
[1727614712686,0.054,65676.0,65675.0,0.46382049]
[1727614713995,0.054,65676.0,65675.0,0.46482049]
[1727614715293,0.054,65676.0,65675.0,0.46445862]
[1727614717387,0.054,65676.0,65675.0,0.3628]
[1727614717388,0.08903739,65676.0,65675.0,0.3628]
[1727614717589,0.12970798,65676.0,65675.0,0.3628]
[1727614717891,0.08903739,65676.0,65675.0,0.3628]
[1727614718090,0.129708,65676.0,65675.0,0.3628]
[1727614720096,0.08902319,65676.0,65675.0,0.3628]
[1727614720500,0.12967596,65676.0,65675.0,0.3628]
[1727614723802,0.08902319,65676.0,65675.0,0.3628]
[1727614724593,0.08900918,65676.0,65675.0,0.3628]
[1727614725196,0.16025614,65676.0,65675.0,0.3628]
[1727614725396,0.054,65676.0,65675.0,0.46443718]
[1727614725701,0.054,65676.0,65675.0,0.54052841]
[1727614725905,0.054,65676.0,65675.0,0.3628]
[1727614726695,0.054,65676.0,65675.0,0.002]
[1727614726895,0.054,65676.0,65675.0,0.3628]
[1727614728692,0.054,65676.0,65675.0,0.002]
[1727614728896,0.054,65676.0,65675.0,0.3628]
[1727614730407,0.054,65676.0,65675.0,0.002]
[1727614730803,0.054,65676.0,65675.0,0.3628]
[1727614730999,0.054,65676.0,65675.0,0.002]
[1727614731199,0.054,65676.0,65675.0,0.3628]
[1727614731907,0.054,65676.0,65675.0,0.002]
[1727614732305,0.17652504,65676.0,65675.0,0.002]
[1727614732511,0.12979825,65676.0,65675.0,0.3628]
[1727614732805,0.12979825,65676.0,65675.0,0.002]
[1727614733211,0.12979825,65676.0,65675.0,0.3628]
[1727614733911,0.12979825,65676.0,65675.0,0.002]
[1727614733912,0.12981653,65676.0,65675.0,0.002]
[1727614734206,0.12981653,65676.0,65675.0,0.3628]
[1727614737099,0.12981653,65676.0,65675.0,0.002]
[1727614740119,0.12981653,65676.0,65675.0,0.3628]
[1727614740407,0.054,65676.0,65675.0,0.42368489]
[1727614740610,0.054,65676.0,65675.0,0.06288489]
[1727614740806,0.054,65676.0,65675.0,0.42368489]
[1727614742206,0.054,65676.0,65675.0,0.06288489]
[1727614742407,0.054,65676.0,65675.0,0.42368489]
[1727614746614,0.054,65676.0,65675.0,0.002]
[1727614747014,0.054,65676.0,65675.0,0.3628]
[1727614748926,0.054,65676.0,65675.0,0.002]
[1727614749111,0.054,65676.0,65675.0,0.3628]
[1727614750917,0.054,65676.0,65675.0,0.002]
[1727614751316,0.054,65676.0,65675.0,0.3628]
[1727614754318,0.054,65676.0,65675.0,0.002]
[1727614754510,0.054,65676.0,65675.0,0.3628]
[1727614755327,0.17663253,65676.0,65675.0,0.3628]
[1727614755722,0.054,65676.0,65675.0,0.3628]
[1727614755923,0.17663249,65676.0,65675.0,0.3628]
[1727614756727,0.17663249,65676.0,65675.0,0.002]
[1727614756927,0.17663249,65676.0,65675.0,0.3628]
[1727614757423,0.17663249,65676.0,65675.0,0.002]
[1727614757623,0.17663249,65676.0,65675.0,0.3628]
[1727614757822,0.17663249,65676.0,65675.0,0.002]
[1727614758019,0.17663249,65676.0,65675.0,0.3628]
[1727614760620,0.17663249,65676.0,65675.0,0.002]
[1727614760821,0.17663249,65676.0,65675.0,0.3628]
[1727614761723,0.17663249,65676.0,65675.0,0.002]
[1727614762027,0.17663249,65676.0,65675.0,0.3628]
[1727614762425,0.054,65676.0,65675.0,0.002]
[1727614762631,0.054,65676.0,65675.0,0.3628]
[1727614763019,0.054,65676.0,65675.0,0.002]
[1727614763220,0.054,65676.0,65675.0,0.3628]
[1727614763625,0.054,65676.0,65675.0,0.002]
[1727614763827,0.054,65676.0,65675.0,0.3628]
[1727614764530,0.054,65676.0,65675.0,0.002]
[1727614764831,0.054,65676.0,65675.0,0.3628]
[1727614765026,0.054,65676.0,65675.0,0.002]
[1727614765222,0.054,65676.0,65675.0,0.3628]
[1727614765428,0.054,65676.0,65675.0,0.002]
[1727614766132,0.054,65676.0,65675.0,0.3628]
[1727614766833,0.054,65676.0,65675.0,0.002]
[1727614767033,0.054,65676.0,65675.0,0.3628]
[1727614768025,0.054,65676.0,65675.0,0.002]
[1727614768329,0.054,65676.0,65675.0,0.3628]
[1727614770035,0.054,65676.0,65675.0,0.002]
[1727614770239,0.054,65676.0,65675.0,0.3628]
[1727614770635,0.17677418,65676.0,65675.0,0.3628]
[1727614771042,0.17677418,65676.0,65675.0,0.002]
[1727614771438,0.17677418,65676.0,65675.0,0.3628]
[1727614772742,0.17677418,65676.0,65675.0,0.002]
[1727614773242,0.17677418,65676.0,65675.0,0.3628]
[1727614775439,0.17677418,65676.0,65675.0,0.002]
[1727614775646,0.17677418,65676.0,65675.0,0.3628]
[1727614776541,0.17677418,65676.0,65675.0,0.002]
[1727614776736,0.17677418,65676.0,65675.0,0.3628]
[1727614776947,0.17677418,65676.0,65675.0,0.002]
[1727614777252,0.31352457,65676.0,65675.0,0.3628]
[1727614777455,0.054,65676.0,65675.0,0.3628]
[1727614777661,0.054,65676.0,65675.0,0.002]
[1727614777861,0.054,65676.0,65675.0,0.3628]
[1727614778963,0.054,65676.0,65675.0,0.002]
[1727614779260,0.054,65676.0,65675.0,0.3628]
[1727614779660,0.054,65676.0,65675.0,0.002]
[1727614780057,0.054,65676.0,65675.0,0.3628]
[1727614783055,0.054,65676.0,65675.0,0.002]
[1727614792371,0.054,65676.0,65675.0,0.04769475]
[1727614792558,1.23233208,65676.0,65672.0,0.3608]
[1727614792759,0.07590221,65675.0,65672.0,0.3608]
[1727614792962,0.07590221,65674.0,65672.0,0.3608]
[1727614793159,0.07561808,65673.0,65672.0,0.3608]
[1727614793364,0.63241808,65673.0,65672.0,0.3608]
[1727614793762,0.63241808,65673.0,65672.0,0.3618]
[1727614794459,0.17561808,65673.0,65672.0,0.3628]
[1727614794869,0.17561808,65673.0,65672.0,0.3618]
[1727614795067,0.18661808,65673.0,65672.0,0.3628]
[1727614795266,0.18661808,65673.0,65672.0,0.3618]
[1727614795468,0.19761808,65673.0,65672.0,0.3628]
[1727614796972,0.38109796,65673.0,65672.0,0.3628]
[1727614797165,0.19761808,65673.0,65672.0,0.3628]
[1727614800677,0.15699141,65673.0,65672.0,0.3628]
[1727614800864,0.122,65673.0,65672.0,0.3628]
[1727614801066,0.122,65673.0,65672.0,0.002]
[1727614802276,0.122,65673.0,65672.0,0.0349]
[1727614805282,0.122,65673.0,65672.0,0.002]
[1727614806682,0.122,65673.0,65665.0,0.0035]
[1727614807779,0.122,65673.0,65671.0,0.06090312]
[1727614807969,0.111,65673.0,65671.0,0.06090312]
[1727614808173,0.114,65673.0,65671.0,0.06090312]
[1727614808385,0.103,65673.0,65671.0,0.06090312]
[1727614808680,0.107,65673.0,65671.0,0.06090312]
[1727614809487,0.103,65673.0,65671.0,0.06090312]
[1727614809676,0.113,65673.0,65671.0,0.06190312]
[1727614809877,0.11,65673.0,65671.0,0.06190312]
[1727614810078,0.12,65673.0,65671.0,0.06290312]
[1727614810774,0.3608,65672.0,65671.0,0.06290312]
[1727614810976,0.4608,65672.0,65671.0,0.06290312]
[1727614812181,0.4708,65672.0,65671.0,0.06290312]
[1727614812784,0.50557652,65672.0,65671.0,0.002]
[1727614813087,0.50557652,65672.0,65671.0,0.001]
[1727614813287,0.51557652,65672.0,65671.0,0.002]
[1727614814183,0.15477652,65672.0,65671.0,0.002]
[1727614814389,0.00487652,65672.0,65671.0,0.002]
[1727614815185,0.01487652,65672.0,65671.0,0.002]
[1727614815386,0.00487652,65672.0,65671.0,0.002]
[1727614817392,0.01487652,65672.0,65671.0,0.002]
[1727614817878,0.01487652,65672.0,65671.0,0.10392205]
[1727614818276,0.01487652,65672.0,65671.0,0.19525384]
[1727614819492,0.01487652,65672.0,65671.0,0.10392205]
[1727614822592,0.01487652,65672.0,65671.0,0.46472205]
[1727614822780,0.01487652,65672.0,65671.0,0.10392205]
[1727614822983,0.01487652,65672.0,65671.0,0.46472205]
[1727614823689,0.05533738,65672.0,65671.0,0.3628]
[1727614824284,0.07533738,65672.0,65671.0,0.3628]
[1727614824485,0.11018752,65672.0,65671.0,0.3628]
[1727614825587,0.11018752,65672.0,65671.0,0.002]
[1727614826386,0.03487652,65672.0,65671.0,0.002]
[1727614826583,0.11023249,65672.0,65671.0,0.002]
[1727614828398,0.11023249,65672.0,65671.0,0.3628]
[1727614828993,0.03487652,65672.0,65671.0,0.3628]
[1727614829191,0.15696141,65672.0,65671.0,0.3628]
[1727614829491,0.2937118,65672.0,65671.0,0.3628]
[1727614830095,0.2937118,65672.0,65665.0,0.0035]
[1727614830397,0.23487822,65671.0,65665.0,0.0035]
[1727614830594,0.14117822,65670.0,65665.0,0.0035]
[1727614830895,0.14117822,65670.0,65664.0,0.3608]
[1727614830896,0.11,65670.0,65668.0,0.07610082]
[1727614831491,0.11,65670.0,65665.0,0.07610082]
[1727614831996,0.11,65670.0,65666.0,0.17806226]
[1727614832295,0.11,65670.0,65666.0,0.07610082]
[1727614832999,0.116,65670.0,65668.0,0.001]
[1727614833387,0.116,65670.0,65669.0,0.06087111]
[1727614833591,0.11,65670.0,65669.0,0.06087111]
[1727614833794,0.121,65670.0,65669.0,0.06087111]
[1727614834385,0.123,65670.0,65669.0,0.06087111]
[1727614834590,0.116,65670.0,65669.0,0.06087111]
[1727614834907,0.124,65670.0,65669.0,0.06187111]
[1727614835292,0.124,65670.0,65669.0,0.001]
[1727614836499,0.125,65670.0,65669.0,0.002]
[1727614843200,0.45684,65669.0,65665.0,0.03963452]
[1727614843393,0.3608,65666.0,65665.0,0.03963452]
[1727614843596,0.4708,65666.0,65665.0,0.03963452]
[1727614843797,1.52768,65666.0,65662.0,0.06087111]
[1727614843996,0.92768,65666.0,65662.0,0.06087111]
[1727614844501,0.92768,65666.0,65661.0,0.06087111]
[1727614844713,0.4738,65666.0,65661.0,0.06087111]
[1727614845400,0.4708,65666.0,65661.0,0.06087111]
[1727614845804,0.4708,65666.0,65656.0,0.00380175]
[1727614846010,0.3608,65659.0,65656.0,0.00380175]
[1727614846190,0.0634,65658.0,65656.0,0.00030175]
[1727614846391,0.1949,65658.0,65656.0,0.00030175]
[1727614847096,0.1949,65658.0,65656.0,0.00530175]
[1727614847899,0.1939,65658.0,65656.0,0.00530175]
[1727614848697,0.1949,65658.0,65656.0,0.01130175]
[1727614853797,0.1949,65658.0,65657.0,0.06087111]
[1727614855402,0.101,65658.0,65657.0,0.06087111]
[1727614855611,0.101,65658.0,65656.0,0.01130175]
[1727614855807,0.1,65658.0,65657.0,0.005]
[1727614856598,0.1,65658.0,65657.0,0.009]
[1727614857209,0.1,65658.0,65657.0,0.11110556]
[1727614857691,0.1,65658.0,65657.0,0.009]
[1727614857897,0.1,65658.0,65657.0,0.11103115]
[1727614860807,0.1,65658.0,65657.0,0.009]
[1727614862908,0.1,65658.0,65657.0,0.3698]
[1727614867402,0.1,65658.0,65657.0,0.009]
[1727614867607,0.1,65658.0,65657.0,0.3698]
[1727614871423,0.1,65658.0,65657.0,0.009]
[1727614875410,0.22067145,65658.0,65657.0,0.009]
[1727614875618,1.23084904,65658.0,65657.0,0.009]
[1727614875818,1.27759217,65658.0,65657.0,0.009]
[1727614876017,1.41434256,65658.0,65657.0,0.009]
[1727614876318,1.27759217,65658.0,65657.0,0.009]
[1727614876710,0.67759217,65658.0,65657.0,0.009]
[1727614877909,0.63084904,65658.0,65657.0,0.009]
[1727614878112,1.23084904,65658.0,65657.0,0.009]
[1727614879524,1.41434379,65658.0,65657.0,0.009]
[1727614879713,1.41434379,65658.0,65656.0,0.00030175]
[1727614880023,0.43472904,65657.0,65656.0,0.00030175]
[1727614880222,0.99164904,65657.0,65656.0,0.00030175]
[1727614880423,1.63839351,65657.0,65656.0,0.00030175]
[1727614880822,1.7751439,65657.0,65656.0,0.00030175]
[1727614881025,2.1359439,65657.0,65656.0,0.00030175]
[1727614881229,1.99919351,65657.0,65656.0,0.00030175]
[1727614882030,1.99919351,65657.0,65656.0,0.00530175]
[1727614882819,1.99919351,65657.0,65656.0,0.01130175]
[1727614883416,1.99919351,65657.0,65656.0,0.00830175]
[1727614883417,1.87952,65657.0,65656.0,0.00830175]
[1727614888229,0.4618,65657.0,65656.0,0.00830175]
[1727614890429,0.495927,65657.0,65656.0,0.00830175]
[1727614893133,0.49593777,65657.0,65656.0,0.00830175]
[1727614894021,0.4618,65657.0,65656.0,0.00830175]
[1727614894221,0.49596477,65657.0,65656.0,0.00830175]
[1727614896238,0.60210047,65657.0,65656.0,0.00830175]
[1727614897228,0.49596477,65657.0,65656.0,0.00830175]
[1727614897825,0.53559611,65657.0,65656.0,0.00830175]
[1727614898438,0.4618,65657.0,65656.0,0.00830175]
[1727614900834,1.51872,65657.0,65656.0,0.06918523]
[1727614901136,0.4618,65657.0,65656.0,0.00830175]
[1727614902045,0.4698,65657.0,65656.0,0.00130175]
[1727614902226,0.4788,65657.0,65656.0,0.00230175]
[1727614902626,0.4698,65657.0,65656.0,0.00130175]
[1727614902827,0.4828,65657.0,65656.0,0.00230175]
[1727614904035,0.4868,65657.0,65656.0,0.00230175]
[1727614905739,0.126,65657.0,65656.0,0.00230175]
[1727614908842,0.4868,65657.0,65656.0,0.00230175]
[1727614913541,0.56072022,65657.0,65656.0,0.00230175]
[1727614916746,0.56070409,65657.0,65656.0,0.00230175]
[1727614919849,0.19990409,65657.0,65656.0,0.00230175]
[1727614920153,0.92150409,65657.0,65656.0,0.00230175]
[1727614920341,0.8476,65657.0,65656.0,0.00230175]
[1727614934448,0.4868,65657.0,65656.0,0.00230175]
[1727614935548,0.60770448,65657.0,65656.0,0.00230175]
[1727614935756,0.74416466,65657.0,65656.0,0.00230175]
[1727614937961,1.10496466,65657.0,65656.0,0.00230175]
[1727614938655,0.98811483,65657.0,65656.0,0.00230175]
[1727614938859,0.92172362,65657.0,65656.0,0.00230175]
[1727614939448,0.92172362,65657.0,65650.0,0.0035]
[1727614939449,1.97850862,65657.0,65650.0,0.0035]
[1727614939659,1.97850862,65657.0,65645.0,0.0035]
[1727614939660,0.3608,65651.0,65645.0,0.0035]
[1727614939855,0.3608,65651.0,65636.0,0.00030175]
[1727614939856,0.48215948,65646.0,65643.0,0.0035]
[1727614940170,0.10614373,65644.0,65638.0,0.0035]
[1727614940353,0.03431599,65643.0,65638.0,0.0301]
[1727614940552,0.03431599,65642.0,65638.0,0.0301]
[1727614940754,0.03331599,65641.0,65638.0,0.0301]
[1727614941061,0.05,65641.0,65638.0,0.0301]
[1727614941259,0.0001,65641.0,65640.0,0.3608]
[1727614941566,0.0035,65648.0,65640.0,0.9608]
[1727614941866,0.0235,65648.0,65647.0,0.3608]
[1727614942165,0.02,65648.0,65647.0,0.3608]
[1727614942863,0.001,65643.0,65640.0,0.3608]
[1727614943064,0.061,65643.0,65640.0,0.3608]
[1727614943265,0.06,65643.0,65640.0,0.3608]
[1727614943566,0.06,65643.0,65641.0,0.22431245]
[1727614943763,0.06,65643.0,65642.0,0.10233411]
[1727614945261,0.06,65643.0,65642.0,0.22431339]
[1727614945962,0.06,65643.0,65642.0,0.22731339]
[1727614946164,0.06,65643.0,65642.0,0.58810135]
[1727614947269,0.06,65643.0,65642.0,0.46613411]
[1727614947569,0.06,65643.0,65642.0,0.58810569]
[1727614949271,0.0035,65648.0,65642.0,0.58810569]
[1727614949475,0.0335,65648.0,65646.0,0.09136993]
[1727614949676,0.03,65648.0,65647.0,0.10233411]
[1727614950469,0.03,65648.0,65644.0,0.0316]
[1727614950470,0.06969669,65648.0,65644.0,0.0316]
[1727614950772,0.12129832,65646.0,65644.0,0.0316]
[1727614951075,0.07388713,65645.0,65644.0,0.0316]
[1727614951475,0.01,65645.0,65644.0,0.0316]
[1727614951675,0.04419044,65645.0,65644.0,0.0316]
[1727614951877,0.08388713,65645.0,65644.0,0.0316]
[1727614952075,0.07388713,65645.0,65644.0,0.0316]
[1727614952877,0.07488713,65645.0,65644.0,0.0316]
[1727614953381,0.07588713,65645.0,65644.0,0.0316]
[1727614953678,0.042,65645.0,65642.0,0.3608]
[1727614953869,0.03421342,65644.0,65642.0,0.3608]
[1727614954064,0.0341372,65643.0,65642.0,0.3608]
[1727614954275,0.17376441,65643.0,65642.0,0.3608]
[1727614955170,0.17377907,65643.0,65642.0,0.3608]
[1727614955879,0.22129832,65643.0,65642.0,0.3618]
[1727614956080,0.29508496,65643.0,65642.0,0.3618]
[1727614956378,0.29508496,65643.0,65642.0,0.3638]
[1727614956677,0.29508496,65643.0,65642.0,0.3628]
[1727614956975,0.29508496,65643.0,65642.0,0.3638]
[1727614958669,0.1,65643.0,65642.0,0.46631487]
[1727614964581,0.1,65643.0,65642.0,0.10551487]
[1727614965184,0.1,65643.0,65642.0,0.18165126]
[1727614965681,0.1,65643.0,65642.0,0.003]
[1727614965887,0.13598764,65643.0,65642.0,0.002]
[1727614966183,0.13798764,65643.0,65638.0,0.3608]
[1727614966375,0.03398764,65642.0,65638.0,0.3608]
[1727614966684,0.03398764,65641.0,65638.0,0.3608]
[1727614966879,0.03398764,65640.0,65638.0,0.3608]
[1727614967179,0.03398195,65639.0,65638.0,0.3608]
[1727614967384,0.12398195,65639.0,65638.0,0.3608]
[1727614969083,0.12498195,65639.0,65638.0,0.3608]
[1727614969893,0.12598195,65639.0,65638.0,0.3608]
[1727614970389,0.12596093,65639.0,65638.0,0.3608]
[1727614971790,0.16525992,65639.0,65638.0,0.3608]
[1727614972692,0.16525992,65639.0,65636.0,0.00030175]
[1727614972886,0.10610417,65637.0,65636.0,0.00030175]
[1727614973085,0.14396093,65637.0,65636.0,0.00030175]
[1727614973286,0.2500459,65637.0,65636.0,0.00030175]
[1727614973497,0.18294005,65637.0,65631.0,0.0035]
[1727614973792,0.18294005,65637.0,65630.0,0.06091489]
[1727614973793,0.3608,65632.0,65630.0,0.06091489]
[1727614973983,0.4608,65632.0,65629.0,0.06091489]
[1727614974188,0.4608,65632.0,65630.0,0.04565317]
[1727614975194,0.4608,65632.0,65628.0,0.04565317]
[1727614975895,0.4588,65632.0,65628.0,0.04565317]
[1727614976398,0.4588,65632.0,65627.0,0.04565317]
[1727614976586,0.0307,65631.0,65628.0,0.001]
[1727614976895,0.1407,65631.0,65628.0,0.04665317]
[1727614977796,0.1407,65631.0,65624.0,0.06091489]
[1727614977797,0.1407,65631.0,65626.0,0.04565317]
[1727614977986,0.1407,65631.0,65628.0,0.001]
[1727614978184,0.5015,65631.0,65628.0,0.001]
[1727614979192,0.5015,65631.0,65625.0,0.04565317]
[1727614979395,0.5015,65631.0,65624.0,0.04565317]
[1727614979591,0.3578,65625.0,65624.0,0.04565317]
[1727614979799,0.4578,65625.0,65624.0,0.04565317]
[1727614980595,0.4578,65625.0,65623.0,0.06091489]
[1727614980792,0.0628,65624.0,65623.0,0.06091489]
[1727614981098,0.1628,65624.0,65623.0,0.06091489]
[1727614982196,0.1,65624.0,65623.0,0.06091489]
[1727614982391,0.096,65624.0,65623.0,0.06091489]
[1727614982693,0.097,65624.0,65622.0,0.06091489]
[1727614983290,0.096,65624.0,65623.0,0.002]
[1727614983888,0.096,65624.0,65622.0,0.06091489]
[1727614984091,0.096,65624.0,65622.0,0.06391489]
[1727614984395,0.096,65624.0,65623.0,0.3608]
[1727614984595,0.0035,65627.0,65623.0,1.06023913]
[1727614984795,0.0035,65631.0,65624.0,0.53945915]
[1727614984997,0.0035,65636.0,65630.0,0.3608]
[1727614985201,0.03,65636.0,65632.0,0.04554887]
[1727614985387,0.03,65636.0,65633.0,0.04554887]
[1727614986494,0.03,65636.0,65631.0,0.06073252]
[1727614986495,0.03,65636.0,65634.0,0.04554887]
[1727614987192,0.039,65636.0,65634.0,0.04554887]
[1727614987403,0.048,65636.0,65634.0,0.04554887]
[1727614987602,0.039,65636.0,65634.0,0.04554887]
[1727614987792,0.049,65636.0,65634.0,0.04554887]
[1727614988698,0.049,65636.0,65630.0,0.3608]
[1727614989503,0.049,65636.0,65634.0,0.001]
[1727614989802,0.045,65636.0,65634.0,0.001]
[1727614990309,0.042,65636.0,65630.0,0.3618]
[1727614990900,0.036,65636.0,65630.0,0.3618]
[1727614991095,0.04,65636.0,65630.0,0.3608]
[1727614991302,0.049,65636.0,65634.0,0.001]
[1727614991803,0.049,65636.0,65634.0,0.45808]
[1727614992002,0.019,65636.0,65634.0,0.45808]
[1727614992709,0.014,65636.0,65634.0,0.45708]
[1727614992898,0.011,65636.0,65634.0,0.45708]
[1727614993300,0.016,65636.0,65634.0,0.45708]
[1727614993699,0.019,65636.0,65634.0,0.45808]
[1727614994900,0.019,65636.0,65634.0,0.001]
[1727614995309,0.029,65636.0,65634.0,0.001]
[1727614996001,0.029,65636.0,65635.0,0.3608]
[1727614996201,0.029,65636.0,65635.0,0.40634887]
[1727614997204,0.02,65636.0,65635.0,0.40634887]
[1727614997404,0.02,65636.0,65635.0,0.40734887]
[1727614997610,0.031,65636.0,65635.0,0.40734887]
[1727615000215,0.031,65636.0,65635.0,0.3618]
[1727615003716,0.06488148,65636.0,65635.0,0.3618]
[1727615004019,0.06488148,65636.0,65635.0,0.001]
[1727615004213,0.06488148,65636.0,65635.0,0.3618]
[1727615008115,0.06488148,65636.0,65635.0,0.001]
[1727615008417,0.15222697,65636.0,65625.0,0.0035]
[1727615008726,0.10591011,65631.0,65625.0,0.0035]
[1727615008915,0.17854633,65630.0,65619.0,0.0035]
[1727615009111,0.10591011,65628.0,65616.0,0.39540175]
[1727615009313,0.06618148,65627.0,65616.0,0.36110175]
[1727615009513,0.03330587,65626.0,65616.0,0.36110175]
[1727615009717,0.03330587,65625.0,65616.0,0.36110175]
[1727615009919,0.11330587,65625.0,65616.0,0.36110175]
[1727615010125,0.03330587,65624.0,65616.0,0.36110175]
[1727615010321,0.06330587,65624.0,65616.0,0.36110175]
[1727615010523,0.03,65624.0,65616.0,0.36110175]
[1727615010826,0.03,65624.0,65623.0,0.07613639]
[1727615011123,0.03,65624.0,65623.0,0.17908639]
[1727615011518,0.031,65624.0,65623.0,0.17908639]
[1727615012522,0.031,65624.0,65623.0,0.10295]